{"text_format":"2","workbook":"xlsx","n_sheets":2,"sheets":["Hulpje","Tabellen"],"not_rendered":{"charts":0,"images":0,"macros":0,"external_links":0,"defined_names":0,"comments":0,"pivot_tables":0},"unopened":[],"bounds":{"document_bytes":16777216,"sheet_cells":100000,"run_cost":"one","rows_first":2000,"rows_last":500,"rows_between":2000,"halvings":0,"cell_chars":16384,"cell_head_chars":4096},"cells_cut":0,"cells_raw":0,"read":"whole","date_system":"1900"}

{"sheet":"Hulpje","index":0,"n_rows":98,"n_cols":9,"rows_kept":98,"cut":false,"hidden":false,"merged":[[95,1,95,8],[89,1,89,8],[90,1,90,8],[91,1,91,8],[92,1,92,8],[93,1,93,8],[94,1,94,8],[48,1,48,8],[49,1,49,8],[50,1,50,8],[51,1,51,8],[52,1,52,8],[0,1,0,8],[6,3,6,8],[7,3,7,8],[8,3,8,8],[9,3,9,8],[46,1,46,8],[47,1,47,8],[11,7,12,7],[11,8,12,8],[13,5,15,5],[16,5,18,5],[13,0,15,0],[16,0,18,0],[1,3,1,8],[2,3,2,8],[3,3,3,8]]}
[null,"Visuele inspectie sanitair"]
[null,"School:"]
[null,"Datum:"]
[null,"Uitgevoerd door:"]
[]
[null,"Inventaris sanitaire blokken"]
[null,"Locaties sanitair LLN - meisjes"]
[null,"Locaties sanitair LLN - jongens"]
[null,"Locaties sanitair werknemers - dames"]
[null,"Locaties sanitair werknemers - heren"]
[]
[null,"Vereist aantal toiletten en wasbakken",{"$nulls":5},"\u0081","\u0080"]
[]
["LLN","Max. aantal jongens in een speeltijd:",null,150,null,"LLN","WC's",{"$f":"CEILING((D15/15),1)","v":7},{"$f":"IF((D16=\"Ja\"),CEILING((D14/25),1),CEILING((D14/15),1))","v":6}]
[null,"Max. aantal meisjes in een speeltijd:",null,100,null,null,"Urinoirs",null,{"$f":"IF(D16=\"Ja\",CEILING((D14/15),1),0)","v":10}]
[null,"Urinoirs beschikbaar (ja/nee):",null,"Ja",null,null,"Lavabo's",{"$f":"CEILING((H14/4),1)","v":2},{"$f":"CEILING(((I14+I15)/4),1)","v":4}]
["WN","Max. aantal werknemers (man):",null,75,null,"WN","WC's",{"$f":"CEILING((D18/15),1)","v":4},{"$f":"IF((D19=\"Ja\"),CEILING((D17/25),1),CEILING((D17/15),1))","v":3}]
[null,"Max. aantal werknemers (vrouw):",null,60,null,null,"Urinoirs",null,{"$f":"IF(D19=\"Ja\",CEILING((D17/15),1),0)","v":5}]
[null,"Urinoirs beschikbaar (ja/nee):",null,"Ja",null,null,"Lavabo's",{"$f":"CEILING((H17/4),1)","v":1},{"$f":"CEILING(((I17+I18)/4),1)","v":2}]
[]
[null,"Sanitair leerlingen",{"$nulls":4},"OK","NOK","NVT"]
[null,"Aantal beschikbare WC's meisjes",{"$nulls":4},{"$f":"IF(D22>=H14,\"X\",\"\")","v":""},{"$f":"IF(D22<H14,\"X\",\"\")","v":"X"}]
[null,"Aantal beschikbare wasbakken meisjes",{"$nulls":4},{"$f":"IF(D23>=H16,\"X\",\"\")","v":""},{"$f":"IF(D23<H16,\"X\",\"\")","v":"X"}]
[null,"Bij iedere WC is een lavabo in de buurt"]
[null,"Alle WC's zijn voorzien van een vuilnisbakje"]
[null,"Alle WC's zijn voorzien van hygiënezakjes"]
[null,"Alle WC's zijn voorzien van WC-papier"]
[]
[null,"Aantal beschikbare WC's jongens",{"$nulls":4},{"$f":"IF(D29>=I14,\"X\",\"\")","v":""},{"$f":"IF(D29<I14,\"X\",\"\")","v":"X"}]
[null,"Aantal beschikbare urinoirs",{"$nulls":4},{"$f":"IF(AND(D30>=I15,D16=\"Ja\"),\"X\",\"\")","v":""},{"$f":"IF(D30<I15,\"X\",\"\")","v":"X"},{"$f":"IF(D16=\"Nee\",\"X\",\"\")","v":""}]
[null,"Aantal beschikbare wasbakken jongens",{"$nulls":4},{"$f":"IF(D31>=I16,\"X\",\"\")","v":""},{"$f":"IF(D31<I16,\"X\",\"\")","v":"X"}]
[null,"Bij iedere WC/urinoir is een lavabo in de buurt"]
[null,"Alle WC's zijn voorzien van WC-papier"]
[]
[null,"Alle lavabo's zijn voorzien van zeep"]
[null,"Alle lavabo's zijn voorzien van handdoeken"]
[null,"Alle handdoeken zijn voor eenmalig gebruik"]
[]
[null,"Alle WC-brillen zijn in goede staat"]
[null,"Alle deuren sluiten en openen gemakkelijk"]
[null,"Alle WC's zijn aangepast aan de leerlingen (hoogte, grootte)"]
[]
[null,"WC's die uitkomen op een gang hebben verluchting naar buiten"]
[null,"Sanitaire blokken worden dagelijks gereinigd"]
[]
[null,"Opmerkingen sanitair leerlingen"]
{"$rows_empty":8}
[null,"Handtekening uitvoerder",null,"Handtekening directie"]
[]
[]
[]
[]
[null,"Sanitair werknemers",{"$nulls":4},"OK","NOK","NVT"]
[null,"Aantal beschikbare WC's dames",{"$nulls":4},{"$f":"IF(D61>=H17,\"X\",\"\")","v":""},{"$f":"IF(D61<H17,\"X\",\"\")","v":"X"}]
[null,"Aantal beschikbare wasbakken dames",{"$nulls":4},{"$f":"IF(D62>=H19,\"X\",\"\")","v":""},{"$f":"IF(D62<H19,\"X\",\"\")","v":"X"}]
[null,"Bij iedere WC is een lavabo in de buurt"]
[null,"Alle WC's zijn voorzien van een vuilnisbakje"]
[null,"Alle WC's zijn voorzien van hygiënezakjes"]
[null,"Alle WC's zijn voorzien van WC-papier"]
[]
[null,"Aantal beschikbare WC's heren",{"$nulls":4},{"$f":"IF(D68>=I17,\"X\",\"\")","v":""},{"$f":"IF(D68<I17,\"X\",\"\")","v":"X"}]
[null,"Aantal beschikbare urinoirs",{"$nulls":4},{"$f":"IF(AND(D19=\"Ja\",D69>=I18),\"X\",\"\")","v":""},{"$f":"IF(D69<I18,\"X\",\"\")","v":"X"},{"$f":"IF(D19=\"Nee\",\"X\",\"\")","v":""}]
[null,"Aantal beschikbare wasbakken heren",{"$nulls":4},{"$f":"IF(D70>=I19,\"X\",\"\")","v":""},{"$f":"IF(D70<I19,\"X\",\"\")","v":"X"}]
[null,"Bij iedere WC/urinoir is een lavabo in de buurt"]
[null,"Alle WC's zijn voorzien van WC-papier"]
[]
[null,"Alle lavabo's zijn voorzien van zeep"]
[null,"Alle lavabo's zijn voorzien van handdoeken"]
[null,"Alle handdoeken zijn voor eenmalig gebruik"]
[]
[null,"Alle WC-brillen zijn in goede staat"]
[null,"Alle deuren sluiten en openen gemakkelijk"]
[null,"Alle WC's bieden voldoende beenruimte"]
[]
[null,"WC's die uitkomen op een gang hebben verluchting naar buiten"]
[null,"Sanitaire blokken worden dagelijks gereinigd"]
[]
[null,"Waar gedoucht kan worden, hangen instructies ivm legionella"]
[null,"Waar gedoucht kan worden, is voldoende verluchting"]
[null,"Douches worden regelmatig gereinigd"]
[]
[null,"Opmerkingen sanitair werknemers"]
{"$rows_empty":8}
[null,"Handtekening uitvoerder",null,"Handtekening directie"]

{"sheet":"Tabellen","index":1,"n_rows":42,"n_cols":8,"rows_kept":42,"cut":false,"hidden":false,"merged":[[0,0,0,4]]}
["aantal toiletten"]
["per 15 leerlingen 1 toilet"]
["per 4 toiletten 1 wastafel"]
[]
["indien mannen"]
["per 25 1 toilet"]
["en per 15 1 urinoir"]
["kan ook indien geen urinoirs: 1 toilet per 15"]
[]
[]
["♀       en","♂","♂ indien aanwezigheid urinoirs",null,null,null,"wastafels"]
["aantal pers.","aantal wc's","aantal pers.","aantal wc's","aantal urinoirs",null,"wc's of u.","aantal"]
[15,1,25,1,2,null,4,1]
[30,2,50,2,4,null,8,2]
[45,3,75,3,5,null,12,3]
[60,4,100,4,7,null,16,4]
[75,5,125,5,9,null,20,5]
[90,6,150,6,10,null,24,6]
[105,7,175,7,12,null,28,7]
[120,8,200,8,14,null,32,8]
[135,9,225,9,15,null,36,9]
[150,10,250,10,18,null,40,10]
[165,11,275,11,19,null,44,11]
[180,12,300,12,20,null,48,12]
[195,13,325,13,22,null,52,13]
[210,14,350,14,24,null,56,14]
[225,15,375,15,25,null,60,15]
[240,16,400,16,27,null,64,16]
[255,17,425,17,29,null,68,17]
[270,18,450,18,30,null,72,18]
[285,19]
[300,20]
[315,21]
[330,22]
[345,23]
[360,24]
[375,25]
[390,26]
[405,27]
[420,28]
[435,29]
[450,30]